bitfinex/quotes_BTCUSD_20251016
["timestamp","ask_amount","ask_price","bid_price","bid_amount"]
[1760623320509,3.04246561,111020.0,111010.0,0.1504]
[1760623320737,3.38246561,111020.0,111010.0,0.1504]
[1760623321433,3.40171148,111020.0,111010.0,0.1514]
[1760623321672,3.40171148,111020.0,111010.0,0.1504]
[1760623321927,3.51603507,111020.0,111010.0,0.1504]
[1760623322403,3.52404179,111020.0,111010.0,0.1504]
[1760623322646,3.46463239,111020.0,111010.0,0.1504]
[1760623322878,3.28448467,111020.0,111010.0,0.1504]
[1760623323119,3.23569321,111020.0,111010.0,0.1504]
[1760623323358,3.41584093,111020.0,111010.0,0.1004]
[1760623323587,3.17499711,111020.0,111010.0,0.1004]
[1760623323836,3.15732294,111020.0,111010.0,0.1004]
[1760623324304,3.19802064,111020.0,111010.0,0.1004]
[1760623325023,3.19801089,111020.0,111010.0,0.1004]
[1760623325256,3.15732294,111020.0,111010.0,0.1004]
[1760623325481,3.14319349,111020.0,111010.0,0.1004]
[1760623325931,2.96448549,111020.0,111010.0,0.1004]
[1760623326177,2.98114134,111020.0,111010.0,0.1004]
[1760623326638,3.48088547,111020.0,111010.0,0.1004]
[1760623326865,3.53874953,111020.0,111010.0,0.1004]
[1760623327094,3.44808028,111010.0,111000.0,0.05]
[1760623327327,3.5386982,111010.0,111000.0,0.05]
[1760623327575,3.48083414,111010.0,111000.0,0.05]
[1760623327792,3.45687646,111010.0,111000.0,0.05]
[1760623328013,3.48240381,111010.0,111000.0,0.05]
[1760623328249,3.51858609,111010.0,111000.0,0.05]
[1760623328479,3.00573546,111000.0,110990.0,0.00098888]
[1760623328726,0.99591531,110990.0,110980.0,0.0054]
[1760623328951,3.00071646,110990.0,110980.0,0.0054]
[1760623329178,3.05858052,110990.0,110980.0,0.0054]
[1760623329418,3.53429942,110990.0,110980.0,0.00598896]
[1760623329651,2.46960189,110970.0,110960.0,0.0004]
[1760623329873,3.44028556,110970.0,110960.0,0.0004]
[1760623330103,3.4673911,110970.0,110960.0,0.00928115]
[1760623330327,3.44028556,110970.0,110960.0,0.00089908]
[1760623330565,2.80829545,110970.0,110960.0,0.00089908]
[1760623330825,2.9827371,110970.0,110960.0,0.00089908]
[1760623331044,2.98116692,110970.0,110960.0,0.00089908]
[1760623331288,2.5195842,110970.0,110960.0,0.00089908]
[1760623331530,3.49497968,110970.0,110960.0,0.00089908]
[1760623331750,2.54354188,110970.0,110960.0,0.00089908]
[1760623331970,3.01926078,110970.0,110960.0,0.00089908]
[1760623332719,2.54611197,110970.0,110960.0,0.00089908]
[1760623332760,3.02083087,110970.0,110960.0,0.00089908]
[1760623333145,3.49654977,110970.0,110960.0,0.00089908]
[1760623334068,3.5955814,110970.0,110960.0,0.00089908]
[1760623334293,3.56439054,110970.0,110960.0,0.00089908]
[1760623334519,2.54601194,110970.0,110960.0,0.00089908]
[1760623334738,3.02173084,110970.0,110960.0,0.00089908]
[1760623335218,3.49744974,110970.0,110960.0,0.00089908]
[1760623335446,3.49744974,110970.0,110960.0,0.00207727]
[1760623335676,3.49644974,110970.0,110960.0,0.00207727]
[1760623335908,3.52455528,110970.0,110960.0,0.00207727]
[1760623336137,3.59182839,110970.0,110960.0,0.00207727]
[1760623336380,3.57711467,110970.0,110960.0,0.00207727]
[1760623336611,3.59972926,110970.0,110960.0,0.00207727]
[1760623336840,3.59872926,110970.0,110960.0,0.00207727]
[1760623337110,3.59972926,110970.0,110960.0,0.00207727]
[1760623337335,3.56470541,110970.0,110960.0,0.00207727]
[1760623337560,3.52672902,110970.0,110960.0,0.00207727]
[1760623337792,3.55056911,110970.0,110960.0,0.00207727]
[1760623338241,3.51847828,110970.0,110960.0,0.00207727]
[1760623338467,3.52515893,110970.0,110960.0,0.00207727]
[1760623338697,3.48997665,110970.0,110960.0,0.00207727]
[1760623338961,3.01425775,110970.0,110960.0,0.00207727]
[1760623339154,2.6484058,110970.0,110960.0,0.00207727]
[1760623339424,2.9894058,110970.0,110960.0,0.00207727]
[1760623339639,2.46817691,110970.0,110960.0,0.00207727]
[1760623339855,2.44433777,110970.0,110960.0,0.00207727]
[1760623340077,2.62456666,110970.0,110960.0,0.00207727]
[1760623340347,2.6484058,110970.0,110960.0,0.00207727]
[1760623340787,3.00254134,110970.0,110960.0,0.00207727]
[1760623341017,2.45847331,110970.0,110960.0,0.00207727]
[1760623341239,2.6387022,110970.0,110960.0,0.00207727]
[1760623341474,3.15483121,110970.0,110960.0,0.00207727]
[1760623341703,3.50465287,110970.0,110960.0,0.00207727]
[1760623341944,3.55269733,110970.0,110960.0,0.00207727]
[1760623342391,3.55678878,110970.0,110960.0,0.00207727]
[1760623343103,3.65171878,110970.0,110960.0,0.00207727]
[1760623343337,3.55678878,110970.0,110960.0,0.00207727]
[1760623344276,3.55678878,110970.0,110960.0,1e-08]
[1760623344517,0.21100365,110960.0,110950.0,0.05]
[1760623344755,0.21100365,110960.0,110950.0,1e-08]
[1760623344756,3.51560117,110960.0,110950.0,1e-08]
[1760623344982,3.59921295,110960.0,110950.0,1e-08]
[1760623345225,2.9815518,110940.0,110930.0,0.03728441]
[1760623345482,3.0731452,110940.0,110930.0,0.03728441]
[1760623345945,3.08885563,110940.0,110930.0,0.03728441]
[1760623346179,2.80127418,110930.0,110900.0,1e-08]
[1760623346413,3.48122365,110910.0,110900.0,0.00838845]
[1760623346672,3.48122365,110910.0,110890.0,0.0004]
[1760623346673,0.55652493,110900.0,110890.0,0.0004]
[1760623346897,2.37298654,110900.0,110890.0,0.0004]
[1760623347136,3.01311222,110900.0,110890.0,0.0004]
[1760623347365,3.04926143,110900.0,110890.0,0.0004]
[1760623347597,2.3937159,110900.0,110890.0,0.0004]
[1760623347834,2.3814188,110900.0,110890.0,0.0004]
[1760623348098,0.03596603,110900.0,110890.0,0.0004]
[1760623348338,0.47621749,110900.0,110890.0,0.0004]
[1760623348564,1.99034695,110900.0,110890.0,0.0004]
[1760623348808,2.44947567,110900.0,110890.0,0.0004]
[1760623349040,0.47621749,110900.0,110890.0,0.0004]
[1760623349291,0.47621749,110900.0,110890.0,0.01518039]
[1760623349508,0.47621749,110900.0,110890.0,0.0004]
[1760623350464,0.47621749,110900.0,110890.0,0.01843589]
[1760623350465,0.00049859,110900.0,110890.0,0.01843589]
[1760623350967,0.00049859,110900.0,110890.0,0.11225265]
[1760623351707,0.00049859,110900.0,110890.0,1.12647685]
[1760623351964,0.00049859,110900.0,110890.0,0.94611794]
[1760623352208,0.00049859,110900.0,110890.0,0.52705676]
[1760623352458,0.00049859,110900.0,110890.0,1.03895794]
[1760623352702,0.00049859,110900.0,110890.0,0.56323904]
[1760623352939,0.00049859,110900.0,110890.0,1.21931685]
[1760623354163,0.00049859,110900.0,110890.0,0.74359795]
[1760623354408,0.00049859,110900.0,110890.0,1.21931685]
[1760623356022,0.00049859,110900.0,110890.0,1.23026297]
[1760623356235,0.00049859,110900.0,110890.0,1.23022297]
[1760623356950,0.00049859,110900.0,110890.0,1.2573293]
[1760623358127,0.56265618,110970.0,110900.0,0.37618228]
[1760623358337,1.949373,110960.0,110920.0,0.85190118]
[1760623358565,2.4250919,110960.0,110930.0,0.19756786]
[1760623358786,0.4757189,110960.0,110930.0,0.18245012]
[1760623359009,0.4757189,110960.0,110930.0,0.19845649]
[1760623359728,0.65596948,110960.0,110930.0,0.10569649]
[1760623359976,0.4757189,110960.0,110930.0,0.19841649]
[1760623360202,0.49491427,110960.0,110930.0,0.18241012]
[1760623360429,0.49491427,110960.0,110940.0,0.01665599]
[1760623361353,0.01919537,110960.0,110940.0,0.01665599]
[1760623361603,0.84549591,110970.0,110940.0,0.01665599]
[1760623361854,0.49648447,110970.0,110940.0,0.10649626]
[1760623362759,0.6857254,110970.0,110940.0,0.10649626]
[1760623363471,0.49648447,110970.0,110940.0,0.10649626]
[1760623363698,0.49648447,110970.0,110950.0,0.0005892]
[1760623364171,0.49491427,110970.0,110950.0,0.0005892]
[1760623364408,0.00155723,110980.0,110960.0,0.08969012]
[1760623364677,0.47727613,110980.0,110960.0,0.08969012]
[1760623364904,0.49645956,110980.0,110960.0,0.18233012]
[1760623365135,0.4757189,110970.0,110950.0,0.4332292]
[1760623365362,0.4757189,110970.0,110960.0,0.01802451]
[1760623365580,0.49489554,110970.0,110960.0,0.01802451]
[1760623366038,0.01917667,110970.0,110960.0,0.01802451]
[1760623366269,0.67666609,110980.0,110960.0,0.01802451]
[1760623366512,0.18024513,110960.0,110950.0,0.0005892]
[1760623366740,3.08105593,110960.0,110950.0,0.0005892]
[1760623366986,3.4402326,110960.0,110950.0,0.0005892]
[1760623368193,3.51987449,110960.0,110950.0,0.0005892]
[1760623369171,3.47207779,110960.0,110950.0,0.0005892]
[1760623369870,3.50826007,110960.0,110950.0,0.0005892]
[1760623370102,3.52489703,110960.0,110950.0,0.0005892]
[1760623370366,3.48871475,110960.0,110950.0,0.0005892]
[1760623370618,3.4402326,110960.0,110950.0,0.0005892]
[1760623371129,2.9645137,110960.0,110950.0,0.0005892]
[1760623371414,2.78426857,110960.0,110950.0,0.0005892]
[1760623371689,2.9645137,110960.0,110950.0,0.0005892]
[1760623372368,2.78426857,110960.0,110950.0,0.0005892]
[1760623372851,0.01917667,110960.0,110950.0,0.0005892]
[1760623373083,0.35917667,110970.0,110950.0,0.0005892]
[1760623373326,0.34,110970.0,110950.0,0.0005892]
[1760623373605,0.4757189,110970.0,110950.0,0.0005892]
[1760623373822,0.49489557,110970.0,110950.0,0.0005892]
[1760623374280,2.60533703,110960.0,110950.0,0.0005892]
[1760623374496,3.1002326,110960.0,110950.0,0.0005892]
[1760623375145,2.1487948,110960.0,110950.0,0.0005892]
[1760623375370,3.1002326,110960.0,110950.0,0.0005892]
[1760623376282,2.6245137,110960.0,110950.0,0.0005892]
[1760623376507,2.94533703,110960.0,110950.0,0.0005892]
[1760623376735,0.4757189,110960.0,110950.0,0.0005892]
[1760623376959,1.949373,110960.0,110950.0,0.0005892]
[1760623377490,0.00155723,110980.0,110950.0,0.0005892]
[1760623377691,0.47727613,110980.0,110950.0,0.01861533]
[1760623377914,0.68569725,110980.0,110950.0,0.01861533]
[1760623378142,0.36075408,110980.0,110950.0,0.0005892]
[1760623378365,0.34155723,110980.0,110950.0,0.0005892]
[1760623378587,0.00155723,110980.0,110950.0,0.0005892]
[1760623378850,0.00155723,110980.0,110960.0,0.08969012]
[1760623379544,0.00155723,110980.0,110970.0,0.01802288]
[1760623380449,0.47727613,110980.0,110950.0,0.01861533]
[1760623380674,0.6574893,110980.0,110950.0,0.10830545]
[1760623380906,0.66649993,110980.0,110950.0,0.10830545]
[1760623381172,1.949373,110970.0,110950.0,0.09027932]
[1760623381385,0.4757189,110960.0,110950.0,0.0005892]
[1760623381626,0.65596403,110960.0,110950.0,0.0005892]
[1760623381841,0.99596403,110960.0,110950.0,0.0005892]
[1760623382063,3.42105593,110960.0,110950.0,0.0005892]
[1760623382293,3.47648157,110960.0,110950.0,0.0005892]
[1760623382521,2.52504377,110960.0,110950.0,0.0005892]
[1760623382979,3.47648157,110960.0,110950.0,0.0005892]
[1760623383445,3.32483682,110960.0,110950.0,0.0005892]
[1760623383761,3.40339204,110960.0,110950.0,0.0005892]
[1760623383982,4.10865345,110960.0,110950.0,0.0005892]
[1760623384216,4.13575899,110960.0,110950.0,0.0005892]
[1760623384892,4.15222138,110960.0,110950.0,0.0005892]
[1760623385178,3.38592672,110960.0,110950.0,0.0005892]
[1760623385440,3.37467893,110960.0,110950.0,0.0005892]
[1760623386405,3.37567893,110960.0,110950.0,0.0005892]
[1760623386656,3.36154133,110960.0,110950.0,0.0005892]
[1760623386906,3.31347281,110960.0,110950.0,0.0005892]
[1760623387148,3.36154133,110960.0,110950.0,0.0005892]
[1760623387856,2.62443473,110960.0,110950.0,0.0005892]
[1760623388089,3.31347281,110960.0,110950.0,0.0005892]
[1760623388558,3.31247281,110960.0,110950.0,0.0005892]
[1760623389512,3.31347281,110960.0,110950.0,0.0005892]
[1760623389744,3.32758822,110960.0,110950.0,0.0005892]
[1760623390226,3.32758822,110960.0,110940.0,1e-08]
[1760623390227,2.50581665,110950.0,110940.0,1e-08]
[1760623390471,0.52031013,110920.0,110910.0,0.01798804]
[1760623390705,3.20678973,110920.0,110910.0,0.01813814]
[1760623390932,3.26217501,110920.0,110910.0,0.01813814]
[1760623391148,3.26217501,110920.0,110910.0,0.0001501]
[1760623391607,2.52506841,110920.0,110910.0,0.0001501]
[1760623391863,3.22599273,110920.0,110910.0,0.0001501]
[1760623392075,2.289373,110920.0,110910.0,0.0001501]
[1760623392322,1.949373,110920.0,110910.0,0.0001501]
[1760623392563,1.949373,110930.0,110910.0,0.0001501]
[1760623393450,2.69549348,110940.0,110910.0,0.0001501]
[1760623393673,0.18031013,110920.0,110910.0,0.0001501]
[1760623393952,2.86678973,110920.0,110910.0,0.0001501]
[1760623394611,2.12968313,110920.0,110910.0,0.0001501]
[1760623394846,0.18031013,110920.0,110910.0,0.0001501]
[1760623395077,2.12968313,110920.0,110910.0,0.0001501]
[1760623395543,0.00157061,110930.0,110910.0,0.0001501]
[1760623396032,1.949373,110940.0,110910.0,0.82694682]
[1760623396285,1.949373,110960.0,110920.0,0.84482773]
[1760623396568,0.01924282,110960.0,110930.0,0.01751923]
[1760623396798,0.2153675,110970.0,110930.0,0.10720935]
[1760623396799,0.00312774,110970.0,110930.0,0.10720935]
[1760623397032,0.18335799,110970.0,110940.0,0.01802776]
[1760623397272,1.944373,110960.0,110940.0,0.01802776]
[1760623397505,0.01924282,110960.0,110940.0,0.01802776]
[1760623397742,0.92947603,110970.0,110940.0,0.01237874]
[1760623397959,1.944373,110960.0,110940.0,0.01237874]
[1760623398183,1.96361582,110960.0,110940.0,0.01237874]
[1760623398407,0.01924282,110960.0,110940.0,0.01237874]
[1760623398655,0.18025772,110960.0,110940.0,0.01237874]
[1760623398896,0.18025772,110960.0,110920.0,1.0771066]
[1760623398897,1.944373,110950.0,110930.0,0.01802938]
[1760623399143,0.94562831,110950.0,110910.0,0.01813814]
[1760623399404,0.1802966,110930.0,110910.0,0.01813814]
[1760623399650,0.18029477,110930.0,110910.0,0.01813814]
[1760623400137,0.18029477,110930.0,110910.0,0.0001501]
[1760623400685,1.944373,110930.0,110910.0,0.0001501]
[1760623400896,0.92640144,110940.0,110910.0,0.0001501]
[1760623401368,2.13366461,110940.0,110910.0,0.0001501]
[1760623401594,0.18929161,110940.0,110910.0,0.0001501]
[1760623401806,0.92639821,110940.0,110910.0,0.0001501]
[1760623402044,0.7371066,110940.0,110910.0,0.0001501]
[1760623402260,1.25738564,110940.0,110930.0,0.00117867]
[1760623402508,0.92795693,110950.0,110930.0,0.00117867]
[1760623402735,1.95338688,110940.0,110910.0,0.0001501]
[1760623403004,1.95338688,110940.0,110910.0,0.01813814]
[1760623403231,0.92795693,110950.0,110910.0,0.01813814]
[1760623403448,0.18027776,110940.0,110910.0,0.01813814]
[1760623403672,0.18929173,110940.0,110910.0,0.01813814]
[1760623403918,0.18929173,110940.0,110910.0,0.10782826]
[1760623403919,1.944373,110940.0,110910.0,0.10782826]
[1760623404155,0.00157032,110950.0,110920.0,0.10772113]
[1760623404398,0.01058338,110950.0,110920.0,0.10772113]
[1760623404644,0.92795142,110950.0,110910.0,0.0001501]
[1760623404880,0.92642645,110940.0,110910.0,0.0001501]
[1760623405111,0.91740199,110930.0,110910.0,0.0001501]
[1760623405606,0.18031013,110920.0,110910.0,0.0001501]
[1760623406053,0.91740199,110930.0,110910.0,0.0001501]
[1760623406287,1.944373,110930.0,110910.0,0.0001501]
[1760623406514,2.12466905,110930.0,110910.0,0.0001501]
[1760623406752,0.18029605,110930.0,110910.0,0.0001501]
[1760623406998,0.92640426,110940.0,110910.0,0.0001501]
[1760623407216,1.944373,110930.0,110910.0,0.01818273]
[1760623407898,1.944373,110940.0,110910.0,0.0001501]
[1760623408139,0.92795142,110950.0,110910.0,0.84497945]
[1760623408140,0.00157032,110950.0,110910.0,0.84497945]
[1760623408353,0.00157032,110950.0,110920.0,0.08969012]
[1760623408577,0.00157032,110950.0,110940.0,0.00058928]
[1760623408814,0.18024968,110960.0,110940.0,0.00058928]
[1760623409047,0.91736797,110950.0,110940.0,0.00058928]
[1760623409360,2.86174097,110950.0,110940.0,0.00058928]
[1760623409489,3.20174097,110950.0,110940.0,0.00058928]
[1760623411807,3.20331123,110950.0,110940.0,0.00058928]
[1760623412477,2.99945023,110950.0,110940.0,0.00058928]
[1760623415092,0.52183163,110950.0,110940.0,0.00058928]
[1760623415585,0.00157026,110950.0,110940.0,0.00058928]
[1760623415782,0.18183163,110950.0,110940.0,0.00058928]
[1760623416042,2.65945023,110950.0,110940.0,0.00058928]
[1760623417563,0.18183163,110950.0,110940.0,0.00058928]
[1760623417804,0.00157026,110950.0,110940.0,0.00058928]
[1760623418748,0.18183163,110950.0,110940.0,0.00058928]
[1760623418958,2.65945023,110950.0,110940.0,0.00058928]
[1760623419628,0.91893823,110950.0,110940.0,0.00058928]
[1760623420734,2.99945023,110950.0,110940.0,0.00058928]
[1760623421415,2.99787997,110950.0,110940.0,0.00058928]
[1760623421628,3.01718456,110950.0,110940.0,0.00058928]
[1760623422090,2.99787997,110950.0,110940.0,0.00058928]
[1760623422308,2.26077337,110950.0,110940.0,0.00058928]
[1760623422524,0.34,110950.0,110940.0,0.00058928]
[1760623422741,0.52026137,110950.0,110940.0,0.00058928]
[1760623423407,0.7371066,110960.0,110940.0,0.00058928]
[1760623423623,1.740512,110950.0,110940.0,0.00058928]
[1760623424054,0.91736215,110960.0,110940.0,0.00058928]
[1760623424305,1.92077337,110950.0,110940.0,0.00058928]
[1760623424514,0.91736797,110950.0,110940.0,0.00058928]
[1760623424988,2.65787997,110950.0,110940.0,0.00058928]
[1760623425475,3.01720944,110950.0,110940.0,0.00058928]
[1760623425710,3.01877969,110950.0,110940.0,0.00058928]
[1760623425968,0.18031013,110920.0,110910.0,0.01813814]
[1760623426188,0.91741673,110920.0,110910.0,0.01813814]
[1760623426581,0.91741673,110920.0,110910.0,0.0001501]
[1760623427002,0.7371066,110920.0,110910.0,0.0001501]
[1760623427228,0.18031013,110920.0,110910.0,0.0001501]
[1760623428060,0.91741673,110920.0,110910.0,0.0001501]
[1760623428266,2.65792873,110920.0,110910.0,0.0001501]
[1760623429549,0.18031013,110920.0,110910.0,0.0001501]
[1760623429756,0.34,110930.0,110910.0,0.0001501]
[1760623429965,1.92082213,110920.0,110910.0,0.0001501]
[1760623430230,0.18031013,110920.0,110910.0,0.0001501]
[1760623430922,2.65791406,110930.0,110910.0,0.0001501]
[1760623431143,0.91740643,110930.0,110910.0,0.0001501]
[1760623431365,0.18031013,110920.0,110910.0,0.0001501]
[1760623431588,0.18031013,110920.0,110910.0,0.0019185]
[1760623432988,2.65792873,110920.0,110910.0,0.0019185]
[1760623433224,2.99792873,110920.0,110910.0,0.0019185]
[1760623433456,0.52034265,110900.0,110890.0,0.0004]
[1760623433691,2.99796125,110900.0,110890.0,0.00054946]
[1760623433926,3.03414353,110900.0,110890.0,0.00054946]
[1760623434411,1.95705319,110890.0,110880.0,0.005]
[1760623434621,2.70242772,110890.0,110880.0,0.005]
[1760623435076,2.70399889,110890.0,110880.0,0.005]
[1760623435283,3.04399889,110890.0,110880.0,1e-08]
[1760623436804,2.3643784,110890.0,110880.0,1e-08]
[1760623437022,3.0707267,110890.0,110880.0,1e-08]
[1760623437235,3.04399889,110890.0,110880.0,1e-08]
[1760623437858,3.04499889,110890.0,110880.0,1e-08]
[1760623439442,3.0858744,110890.0,110880.0,1e-08]
[1760623439661,3.08430323,110890.0,110880.0,1e-08]
[1760623439873,3.08430323,110890.0,110880.0,0.00176913]
[1760623440333,2.34719663,110890.0,110880.0,0.00176913]
[1760623440545,3.02139314,110890.0,110880.0,0.00176913]
[1760623440979,3.05757542,110890.0,110880.0,0.00176913]
[1760623441410,3.08833372,110890.0,110880.0,0.00176913]
[1760623441624,3.08833372,110890.0,110880.0,1e-08]
[1760623441831,3.08430323,110890.0,110880.0,1e-08]
[1760623442042,3.13427233,110890.0,110880.0,1e-08]
[1760623442483,3.1509417,110890.0,110880.0,1e-08]
[1760623442695,3.1499417,110890.0,110880.0,1e-08]
[1760623443129,3.05757542,110890.0,110880.0,1e-08]
[1760623443380,3.08430323,110890.0,110880.0,1e-08]
[1760623443597,3.30130671,110890.0,110880.0,1e-08]
[1760623443825,3.2745789,110890.0,110880.0,1e-08]
[1760623444496,3.2745789,110890.0,110880.0,0.02500001]
[1760623444945,2.40719388,110890.0,110880.0,0.02500001]
[1760623445216,3.22424892,110890.0,110880.0,0.02500001]
[1760623445429,2.40719388,110890.0,110880.0,0.02500001]
[1760623445652,2.92010451,110890.0,110880.0,0.02500001]
[1760623445874,0.52042399,110850.0,110840.0,0.01798804]
[1760623446093,0.52042399,110850.0,110820.0,0.01798804]
[1760623446094,0.18045476,110840.0,110820.0,0.01798804]
[1760623446322,0.49510079,110830.0,110820.0,0.01798804]
[1760623446552,0.66786592,110840.0,110820.0,0.01798804]
[1760623446769,0.01804575,110830.0,110810.0,0.01804891]
[1760623446986,0.49643317,110840.0,110810.0,0.01804891]
[1760623446987,0.52042791,110850.0,110810.0,0.58479407]
[1760623447205,0.00014938,110830.0,110810.0,0.08969012]
[1760623447422,0.34014938,110830.0,110810.0,0.08969012]
[1760623447643,0.34014938,110830.0,110820.0,0.01804728]
[1760623448328,0.00014938,110830.0,110820.0,0.01804728]
[1760623449461,0.00014938,110830.0,110820.0,0.62097472]
[1760623449685,0.00014938,110830.0,110820.0,1.12340027]
[1760623450149,0.00014938,110830.0,110820.0,0.64634523]
[1760623450371,0.00014938,110830.0,110820.0,0.94292744]
[1760623450595,0.00014938,110830.0,110820.0,1.12340027]
[1760623451098,0.00014938,110830.0,110820.0,1.21556027]
[1760623452192,0.00014938,110830.0,110820.0,1.12340027]
[1760623452417,0.00014938,110830.0,110820.0,0.73850523]
[1760623452642,0.00014938,110830.0,110820.0,1.21556027]
[1760623452898,0.00014938,110830.0,110820.0,1.03508744]
[1760623453111,0.00014938,110830.0,110820.0,1.03608744]
[1760623453333,0.00014938,110830.0,110820.0,1.21556027]
[1760623453778,0.00014938,110830.0,110820.0,0.94392744]
[1760623454033,0.00014938,110830.0,110820.0,1.03504744]
[1760623454274,0.00014938,110830.0,110820.0,1.21552027]
[1760623454489,0.00014938,110830.0,110820.0,1.21652027]
[1760623454716,0.00014938,110830.0,110820.0,1.21552027]
[1760623454932,0.00014938,110830.0,110820.0,1.69257531]
[1760623455385,0.00014938,110830.0,110820.0,6.69257531]
[1760623455606,0.00014938,110830.0,110820.0,1.12340027]
[1760623455838,1.266e-05,110830.0,110820.0,0.94292744]
[1760623456063,1.266e-05,110830.0,110820.0,1.21652027]
[1760623456284,1.266e-05,110830.0,110820.0,1.21552027]
[1760623456521,1.266e-05,110830.0,110820.0,1.69257531]
[1760623456784,1.266e-05,110830.0,110820.0,1.69357531]
[1760623457001,1.266e-05,110830.0,110820.0,6.69711594]
[1760623457229,1.266e-05,110830.0,110820.0,1.69711594]
[1760623457451,1.266e-05,110830.0,110820.0,6.69611594]
[1760623457676,0.0372189,110900.0,110880.0,0.03618228]
[1760623457893,0.03484137,110900.0,110890.0,0.08969012]
[1760623458112,0.01685333,110900.0,110890.0,0.08969012]
[1760623460590,0.01685333,110900.0,110890.0,0.09069012]
[1760623460841,0.00015018,110900.0,110890.0,0.09069012]
[1760623461067,0.00015018,110900.0,110890.0,0.001]
[1760623461506,0.00015018,110900.0,110890.0,0.09069012]
[1760623461945,0.00015018,110900.0,110890.0,0.10872601]
[1760623462814,0.00015018,110900.0,110890.0,0.62196333]
[1760623463032,0.00015018,110900.0,110890.0,1.03600744]
[1760623464198,0.00015018,110900.0,110890.0,0.08969012]
[1760623464444,0.47720522,110900.0,110880.0,0.01803751]
[1760623464668,0.47720522,110900.0,110890.0,0.001]
[1760623464669,0.00015018,110900.0,110890.0,0.001]
[1760623464892,0.00015018,110900.0,110890.0,0.10772601]
[1760623465592,0.00015018,110900.0,110890.0,0.96096333]
[1760623465813,0.00015018,110900.0,110890.0,0.94292744]
[1760623466253,0.00015018,110900.0,110890.0,0.94492744]
[1760623466709,0.00015018,110900.0,110890.0,0.94292744]
[1760623467218,0.00015018,110900.0,110890.0,1.12328635]
[1760623467438,0.00015018,110900.0,110890.0,1.12528635]
[1760623467661,0.00015018,110900.0,110890.0,0.94292744]
[1760623468110,0.00015018,110900.0,110890.0,0.94492744]
[1760623468340,0.00015018,110900.0,110890.0,1.12528635]
[1760623468566,0.00015018,110900.0,110890.0,0.5599924]
[1760623469433,0.00015018,110900.0,110890.0,1.03704744]
[1760623470589,0.00015018,110900.0,110890.0,0.4678724]
[1760623471095,0.00015018,110900.0,110890.0,0.94492744]
[1760623471325,0.00015018,110900.0,110890.0,0.94292744]
[1760623471576,0.00015018,110900.0,110890.0,0.4658724]
[1760623472729,0.00015018,110900.0,110890.0,0.1258724]
[1760623472943,0.00015018,110900.0,110890.0,0.14102166]
[1760623473175,0.00015018,110900.0,110890.0,0.14302166]
[1760623473426,0.18031126,110920.0,110890.0,0.14302166]
[1760623473427,0.0090155,110920.0,110890.0,0.14302166]
[1760623473635,0.20209475,110920.0,110900.0,0.08969012]
[1760623473849,0.6663637,110930.0,110900.0,0.08969012]
[1760623474061,0.19636341,110920.0,110900.0,0.08969012]
[1760623474281,0.18032639,110910.0,110900.0,0.08969012]
[1760623474506,0.00901631,110910.0,110880.0,0.34]
[1760623474723,0.18932592,110920.0,110890.0,0.10226627]
[1760623474934,0.49397128,110920.0,110900.0,0.001]
[1760623475140,0.18031117,110920.0,110900.0,0.001]
[1760623475360,0.19378341,110920.0,110900.0,0.001]
[1760623475813,0.00157042,110930.0,110900.0,0.10872438]
[1760623476042,0.19991087,110930.0,110910.0,0.10772275]
[1760623476266,0.65892016,110930.0,110910.0,0.08969012]
[1760623476708,0.47705504,110920.0,110900.0,0.001]
[1760623476924,0.19087981,110930.0,110900.0,0.10872438]
[1760623477162,0.6859806,110930.0,110900.0,0.10872438]
[1760623477371,0.00157042,110930.0,110900.0,0.08969012]
[1760623477585,0.48888883,110930.0,110900.0,0.09995349]
[1760623477788,0.65892181,110930.0,110900.0,0.09995349]
[1760623477995,0.65892181,110930.0,110900.0,0.10508761]
[1760623478205,0.00157042,110930.0,110910.0,0.08969012]
[1760623478471,0.67534103,110930.0,110910.0,0.08969012]
[1760623478696,0.18031013,110920.0,110910.0,0.08969012]
[1760623478910,0.66638067,110920.0,110890.0,0.05417032]
[1760623479124,0.01804575,110910.0,110890.0,0.12571405]
[1760623479337,0.19896286,110910.0,110890.0,0.12571405]
[1760623479552,0.00058956,110910.0,110900.0,0.001]
[1760623479812,0.01863531,110910.0,110900.0,0.001]
[1760623480014,0.00058956,110910.0,110890.0,0.10772601]
[1760623480230,0.01863531,110910.0,110890.0,0.10872601]
[1760623480453,0.19896286,110910.0,110890.0,0.10772601]
[1760623480663,0.47705504,110900.0,110880.0,0.00205751]
[1760623480897,0.66698846,110910.0,110880.0,0.09174763]
[1760623481337,0.66698846,110910.0,110890.0,0.01803589]
[1760623481555,0.18034265,110900.0,110880.0,0.09174763]
[1760623481987,0.66698846,110910.0,110880.0,0.09174763]
[1760623482228,0.01494449,110900.0,110880.0,0.09174763]
[1760623482665,0.00058956,110910.0,110890.0,0.08969012]
[1760623482880,0.00058956,110910.0,110890.0,0.10772601]
[1760623483107,0.00058956,110910.0,110890.0,0.10872601]
[1760623483316,0.00058956,110910.0,110890.0,0.10772601]
[1760623483563,0.00058956,110910.0,110890.0,0.10179045]
[1760623483789,0.00058956,110910.0,110890.0,0.10082557]
[1760623484220,0.00058956,110910.0,110890.0,0.10772601]
[1760623484426,0.00058956,110910.0,110890.0,0.10328461]
[1760623484930,0.00058956,110910.0,110900.0,0.01803426]
[1760623485140,0.00058956,110910.0,110900.0,0.10772438]
[1760623486455,0.00058956,110910.0,110900.0,0.10872438]
[1760623487092,0.00058956,110910.0,110900.0,0.10561561]
[1760623487767,0.00058956,110910.0,110900.0,0.09992779]
[1760623487975,0.00058956,110910.0,110900.0,0.10872438]
[1760623489041,0.00058956,110910.0,110900.0,0.09069012]
[1760623489465,0.00058956,110910.0,110900.0,0.94392744]
[1760623489676,0.00058956,110910.0,110900.0,1.03592744]
[1760623489890,0.00058956,110910.0,110900.0,1.21627009]
[1760623490120,0.00058956,110910.0,110900.0,1.03592744]
[1760623490743,0.00058956,110910.0,110900.0,1.21527009]
[1760623491168,0.00058956,110910.0,110900.0,1.21727009]
[1760623491651,0.00058956,110910.0,110900.0,1.31220009]
[1760623492971,0.00012004,110910.0,110900.0,1.31220009]
[1760623493179,0.00012004,110910.0,110900.0,1.21727009]
[1760623494041,0.00012004,110910.0,110900.0,6.69432513]
[1760623494266,1e-08,110910.0,110900.0,6.78925513]
[1760623494485,0.01798804,110980.0,110960.0,0.21642451]
[1760623494699,0.01798804,110980.0,110970.0,0.71295032]
[1760623494907,0.70227857,111000.0,110970.0,0.2178724]
[1760623495119,0.70227911,111000.0,110970.0,0.08969012]
[1760623495366,0.47705504,110990.0,110970.0,0.08969012]
[1760623495583,0.18019694,110990.0,110970.0,0.08969012]
[1760623495802,0.65740216,110990.0,110970.0,0.09858465]
[1760623496025,0.18922328,110980.0,110950.0,0.05417032]
[1760623496238,0.18922328,110980.0,110960.0,0.0985313]
[1760623496685,0.18922328,110980.0,110970.0,0.001]
[1760623496904,0.66627832,110980.0,110970.0,0.001]
[1760623497540,0.18926112,110960.0,110930.0,0.13708959]